Workbook

Sheet Sheet1
A1: 附件3：
A2: 安顺市镇宁自治县2023年事业单位面向社会公开招聘工作人员总成绩
A3: 序号 | B3: 准考证号 | C3: 姓名 | D3: 招考单位及代码 | E3: 报考岗位及代码 | F3: 笔试成绩 | H3: 面试成绩 | J3: 总成绩 | K3: 备注
F4: 成绩 | G4: 折算后成绩 | H4: 成绩 | I4: 折算后成绩
A5: 1 | B5: 1152831201714 | C5: 张云 | D5: 4001镇宁自治县白马湖街道党务政务综合服务中心(党群服务中心) | E5: 01管理人员 | F5: 195.00 | G5: =F5/3*0.6 -> 39.00 | H5: 缺考 | I5: 缺考
A6: 2 | B6: 1152831201118 | C6: 戴胜 | D6: 4001镇宁自治县白马湖街道党务政务综合服务中心(党群服务中心) | E6: 01管理人员 | F6: 188.00 | G6: =F6/3*0.6 -> 37.60 | H6: 79.18 | I6: =H6*0.4 -> 31.67 | J6: =G6+I6 -> 69.27
A7: 3 | B7: 1152831201729 | C7: 张金旺 | D7: 4001镇宁自治县白马湖街道党务政务综合服务中心(党群服务中心) | E7: 01管理人员 | F7: 178.50 | G7: 35.70 | H7: 73.42 | I7: 29.37 | J7: =G7+I7 -> 65.07
A8: 4 | B8: 1152831200108 | C8: 周宇 | D8: 4002镇宁自治县白马湖街道综治中心（网格化管理服务中心） | E8: 01管理人员 | F8: 205.00 | G8: 41.00 | H8: 80.32 | I8: 32.13 | J8: 73.13
A9: 5 | B9: 1152831200927 | C9: 卢兴波 | D9: 4002镇宁自治县白马湖街道综治中心（网格化管理服务中心） | E9: 01管理人员 | F9: 185.00 | G9: 37.00 | H9: 80.20 | I9: 32.08 | J9: 69.08
A10: 6 | B10: 1152831201609 | C10: 杨亚 | D10: 4002镇宁自治县白马湖街道综治中心（网格化管理服务中心） | E10: 01管理人员 | F10: 184.50 | G10: 36.90 | H10: 79.60 | I10: 31.84 | J10: 68.74
A11: 7 | B11: 1152831206823 | C11: 黄窈 | D11: 4003镇宁自治县环翠街道财政所 | E11: 01管理人员 | F11: 194.00 | G11: 38.80 | H11: 84.14 | I11: 33.66 | J11: 72.46
A12: 8 | B12: 1152831207406 | C12: 封怀艳 | D12: 4003镇宁自治县环翠街道财政所 | E12: 01管理人员 | F12: 191.50 | G12: 38.30 | H12: 82.34 | I12: 32.94 | J12: 71.24
A13: 9 | B13: 1152831207724 | C13: 胡三妹 | D13: 4003镇宁自治县环翠街道财政所 | E13: 01管理人员 | F13: 190.50 | G13: 38.10 | H13: 79.96 | I13: 31.98 | J13: 70.08
A14: 10 | B14: 1152831201105 | C14: 汪希跃 | D14: 4004镇宁自治县环翠街道综合行政执法大队 | E14: 01管理人员 | F14: 192.00 | G14: 38.40 | H14: 80.54 | I14: 32.22 | J14: 70.62
A15: 11 | B15: 1152831202617 | C15: 杨琴 | D15: 4004镇宁自治县环翠街道综合行政执法大队 | E15: 01管理人员 | F15: 166.50 | G15: 33.30 | H15: 79.62 | I15: 31.85 | J15: 65.15
A16: 12 | B16: 1152831208011 | C16: 韩兴秀 | D16: 4004镇宁自治县环翠街道综合行政执法大队 | E16: 01管理人员 | F16: 163.00 | G16: 32.60 | H16: 79.62 | I16: 31.85 | J16: 64.45
A17: 13 | B17: 1152831201605 | C17: 吴治敏 | D17: 4005镇宁自治县宁西街道公共事务服务中心 | E17: 01管理人员 | F17: 173.00 | G17: 34.60 | H17: 82.40 | I17: 32.96 | J17: 67.56
A18: 14 | B18: 1152831202514 | C18: 李婷 | D18: 4005镇宁自治县宁西街道公共事务服务中心 | E18: 01管理人员 | F18: 171.50 | G18: 34.30 | H18: 82.42 | I18: 32.97 | J18: 67.27
A19: 15 | B19: 1152831204302 | C19: 张蓉 | D19: 4005镇宁自治县宁西街道公共事务服务中心 | E19: 01管理人员 | F19: 169.00 | G19: 33.80 | H19: 78.06 | I19: 31.22 | J19: 65.02
A20: 16 | B20: 1152831207223 | C20: 洒建华 | D20: 4006镇宁自治县双龙山街道党务政务综合服务中心（党群服务中心） | E20: 01管理人员 | F20: 205.50 | G20: 41.10 | H20: 82.20 | I20: 32.88 | J20: 73.98
A21: 17 | B21: 1152831200617 | C21: 姚其姗 | D21: 4006镇宁自治县双龙山街道党务政务综合服务中心（党群服务中心） | E21: 01管理人员 | F21: 194.00 | G21: 38.80 | H21: 81.22 | I21: 32.49 | J21: 71.29
A22: 18 | B22: 1152831200115 | C22: 夏珺珺 | D22: 4006镇宁自治县双龙山街道党务政务综合服务中心（党群服务中心） | E22: 01管理人员 | F22: 193.50 | G22: 38.70 | H22: 81.66 | I22: 32.66 | J22: 71.36
A23: 19 | B23: 1152831201713 | C23: 潘祖权 | D23: 4007镇宁自治县丁旗街道党务政务综合服务中心（党群服务中心） | E23: 01管理人员 | F23: 193.00 | G23: 38.60 | H23: 81.10 | I23: 32.44 | J23: 71.04
A24: 20 | B24: 1152831201327 | C24: 马冲 | D24: 4007镇宁自治县丁旗街道党务政务综合服务中心（党群服务中心） | E24: 01管理人员 | F24: 189.50 | G24: 37.90 | H24: 79.84 | I24: 31.94 | J24: 69.84
A25: 21 | B25: 1152831201703 | C25: 王会敏 | D25: 4007镇宁自治县丁旗街道党务政务综合服务中心（党群服务中心） | E25: 01管理人员 | F25: 184.50 | G25: 36.90 | H25: 79.74 | I25: 31.90 | J25: 68.80
A26: 22 | B26: 1152831203901 | C26: 王伟 | D26: 4008镇宁自治县丁旗街道综合行政执法大队 | E26: 01管理人员 | F26: 162.50 | G26: 32.50 | H26: 76.78 | I26: 30.71 | J26: 63.21
A27: 23 | B27: 1152831205102 | C27: 娄春花 | D27: 4008镇宁自治县丁旗街道综合行政执法大队 | E27: 01管理人员 | F27: 161.50 | G27: 32.30 | H27: 81.48 | I27: 32.59 | J27: 64.89
A28: 24 | B28: 1152831205130 | C28: 陈应洪 | D28: 4008镇宁自治县丁旗街道综合行政执法大队 | E28: 01管理人员 | F28: 159.00 | G28: 31.80 | H28: 78.22 | I28: 31.29 | J28: 63.09
A29: 25 | B29: 1152831201509 | C29: 黄清萃 | D29: 4009镇宁自治县扁担山镇财政分局 | E29: 01管理人员 | F29: 200.00 | G29: 40.00 | H29: 82.66 | I29: 33.06 | J29: 73.06
A30: 26 | B30: 1152831203118 | C30: 杨如意 | D30: 4009镇宁自治县扁担山镇财政分局 | E30: 01管理人员 | F30: 176.00 | G30: 35.20 | H30: 82.16 | I30: 32.86 | J30: 68.06
A31: 27 | B31: 1152831206214 | C31: 姚字飞 | D31: 4009镇宁自治县扁担山镇财政分局 | E31: 01管理人员 | F31: 171.50 | G31: 34.30 | H31: 79.10 | I31: 31.64 | J31: 65.94
A32: 28 | B32: 1152831202121 | C32: 杨怀林 | D32: 4010镇宁自治县扁担山镇林业和环境保护工作站 | E32: 01专业技术人员 | F32: 206.50 | G32: 41.30 | H32: 79.16 | I32: 31.66 | J32: 72.96
A33: 29 | B33: 1152831206030 | C33: 雷望望 | D33: 4010镇宁自治县扁担山镇林业和环境保护工作站 | E33: 01专业技术人员 | F33: 189.00 | G33: 37.80 | H33: 缺考 | I33: 缺考
A34: 30 | B34: 1152831204709 | C34: 商正琦 | D34: 4010镇宁自治县扁担山镇林业和环境保护工作站 | E34: 01专业技术人员 | F34: 185.00 | G34: 37.00 | H34: 82.06 | I34: =H34*0.4 -> 32.82 | J34: 69.82
A35: 31 | B35: 1152831207607 | C35: 张雷 | D35: 4011镇宁自治县马厂镇林业和环境保护工作站 | E35: 01专业技术人员 | F35: 130.00 | G35: 26.00 | H35: 79.14 | I35: =H35*0.4 -> 31.66 | J35: 57.66
A36: 32 | B36: 1152831202012 | C36: 龚欣怡 | D36: 4012镇宁自治县马厂镇财政分局 | E36: 01管理人员 | F36: 200.50 | G36: 40.10 | H36: 84.98 | I36: 33.99 | J36: 74.09
A37: 33 | B37: 1152831202511 | C37: 王瀚 | D37: 4012镇宁自治县马厂镇财政分局 | E37: 01管理人员 | F37: 183.50 | G37: 36.70 | H37: 82.80 | I37: 33.12 | J37: 69.82
A38: 34 | B38: 1152831204819 | C38: 张琪琪 | D38: 4012镇宁自治县马厂镇财政分局 | E38: 01管理人员 | F38: 176.50 | G38: 35.30 | H38: 81.60 | I38: 32.64 | J38: 67.94
A39: 35 | B39: 1152831200602 | C39: 王怀荣 | D39: 4013镇宁自治县募役镇乡村振兴服务中心 | E39: 01管理人员 | F39: 137.00 | G39: 27.40 | H39: 78.64 | I39: 31.46 | J39: 58.86
A40: 36 | B40: 1152831207108 | C40: 杨苹 | D40: 4013镇宁自治县募役镇乡村振兴服务中心 | E40: 01管理人员 | F40: 106.00 | G40: 21.20 | H40: 75.56 | I40: 30.22 | J40: 51.42
A41: 37 | B41: 1152831205804 | C41: 潘飞虎 | D41: 4013镇宁自治县募役镇乡村振兴服务中心 | E41: 01管理人员 | F41: 102.00 | G41: 20.40 | H41: 78.02 | I41: 31.21 | J41: 51.61
A42: 38 | B42: 1152831200513 | C42: 李加媛 | D42: 4014镇宁自治县募役镇人力资源和社会保障服务中心 | E42: 01管理人员 | F42: 193.50 | G42: 38.70 | H42: 81.52 | I42: 32.61 | J42: 71.31
A43: 39 | B43: 1152831207617 | C43: 杨德厚 | D43: 4014镇宁自治县募役镇人力资源和社会保障服务中心 | E43: 01管理人员 | F43: 192.50 | G43: 38.50 | H43: 82.56 | I43: 33.02 | J43: 71.52
A44: 40 | B44: 1152831204214 | C44: 陈伟 | D44: 4014镇宁自治县募役镇人力资源和社会保障服务中心 | E44: 01管理人员 | F44: 188.00 | G44: 37.60 | H44: 81.52 | I44: 32.61 | J44: 70.21
A45: 41 | B45: 1152831208117 | C45: 刘菊 | D45: 4015镇宁自治县募役镇退役军人服务中心 | E45: 01管理人员 | F45: 187.50 | G45: 37.50 | H45: 82.64 | I45: 33.06 | J45: 70.56
A46: 42 | B46: 1152831200604 | C46: 刘彩新 | D46: 4015镇宁自治县募役镇退役军人服务中心 | E46: 01管理人员 | F46: 180.50 | G46: 36.10 | H46: 83.86 | I46: 33.54 | J46: 69.64
A47: 43 | B47: 1152831204509 | C47: 柳娟娟 | D47: 4015镇宁自治县募役镇退役军人服务中心 | E47: 01管理人员 | F47: 177.00 | G47: 35.40 | H47: 82.60 | I47: 33.04 | J47: 68.44
A48: 44 | B48: 1152831200515 | C48: 陈宇恒 | D48: 4016镇宁自治县江龙镇村镇建设管理站 | E48: 01专业技术人员 | F48: 202.50 | G48: 40.50 | H48: 82.82 | I48: 33.13 | J48: 73.63
A49: 45 | B49: 1152831202002 | C49: 杨贝贝 | D49: 4016镇宁自治县江龙镇村镇建设管理站 | E49: 01专业技术人员 | F49: 182.50 | G49: 36.50 | H49: 82.16 | I49: 32.86 | J49: 69.36
A50: 46 | B50: 1152831203619 | C50: 柏贵龙 | D50: 4016镇宁自治县江龙镇村镇建设管理站 | E50: 01专业技术人员 | F50: 171.50 | G50: 34.30 | H50: 80.98 | I50: 32.39 | J50: 66.69
A51: 47 | B51: 1152831204008 | C51: 王凤 | D51: 4017镇宁自治县江龙镇农业服务中心 | E51: 01专业技术人员 | F51: 168.00 | G51: 33.60 | H51: 78.76 | I51: 31.50 | J51: 65.10
A52: 48 | B52: 1152831203129 | C52: 马步勋 | D52: 4017镇宁自治县江龙镇农业服务中心 | E52: 01专业技术人员 | F52: 168.00 | G52: 33.60 | H52: 82.04 | I52: 32.82 | J52: 66.42
A53: 49 | B53: 1152831208027 | C53: 程达戎 | D53: 4017镇宁自治县江龙镇农业服务中心 | E53: 01专业技术人员 | F53: 162.50 | G53: 32.50 | H53: 83.30 | I53: 33.32 | J53: 65.82
A54: 50 | B54: 1152831201707 | C54: 杨好好 | D54: 4018镇宁自治县本寨镇林业和环境保护工作站 | E54: 01专业技术人员 | F54: 193.00 | G54: 38.60 | H54: 81.52 | I54: 32.61 | J54: 71.21
A55: 51 | B55: 1152831202218 | C55: 周礼朋 | D55: 4018镇宁自治县本寨镇林业和环境保护工作站 | E55: 01专业技术人员 | F55: 189.00 | G55: 37.80 | H55: 79.26 | I55: 31.70 | J55: 69.50
A56: 52 | B56: 1152831206001 | C56: 周芳芳 | D56: 4018镇宁自治县本寨镇林业和环境保护工作站 | E56: 01专业技术人员 | F56: 181.50 | G56: 36.30 | H56: 80.80 | I56: 32.32 | J56: 68.62
A57: 53 | B57: 1152831204112 | C57: 董文明 | D57: 4019镇宁自治县本寨镇安全生产监督管理站 | E57: 01管理人员 | F57: 179.00 | G57: 35.80 | H57: 83.40 | I57: 33.36 | J57: 69.16
A58: 54 | B58: 1152831208507 | C58: 蒋礼康 | D58: 4019镇宁自治县本寨镇安全生产监督管理站 | E58: 01管理人员 | F58: 168.00 | G58: 33.60 | H58: 82.44 | I58: 32.98 | J58: 66.58
A59: 55 | B59: 1152831202924 | C59: 邓守强 | D59: 4019镇宁自治县本寨镇安全生产监督管理站 | E59: 01管理人员 | F59: 136.00 | G59: 27.20 | H59: 缺考 | I59: 缺考
A60: 56 | B60: 1152831203213 | C60: 支小爽 | D60: 4020镇宁自治县革利乡农业服务中心 | E60: 01专业技术人员 | F60: 169.50 | G60: 33.90 | H60: 82.98 | I60: 33.19 | J60: 67.09
A61: 57 | B61: 1152831205425 | C61: 王邦霞 | D61: 4020镇宁自治县革利乡农业服务中心 | E61: 01专业技术人员 | F61: 166.00 | G61: 33.20 | H61: 79.84 | I61: 31.94 | J61: 65.14
A62: 58 | B62: 1152831205913 | C62: 伍明勇 | D62: 4020镇宁自治县革利乡农业服务中心 | E62: 01专业技术人员 | F62: 157.00 | G62: 31.40 | H62: 81.80 | I62: 32.72 | J62: 64.12
A63: 59 | B63: 1152831205716 | C63: 罗弟飞 | D63: 4021镇宁自治县革利乡财政分局 | E63: 01管理人员 | F63: 189.50 | G63: 37.90 | H63: 83.82 | I63: 33.53 | J63: 71.43
A64: 60 | B64: 1152831207927 | C64: 杨若男 | D64: 4021镇宁自治县革利乡财政分局 | E64: 01管理人员 | F64: 185.50 | G64: 37.10 | H64: 83.22 | I64: 33.29 | J64: 70.39
A65: 61 | B65: 1152831201230 | C65: 杜雨滢 | D65: 4021镇宁自治县革利乡财政分局 | E65: 01管理人员 | F65: 182.50 | G65: 36.50 | H65: 84.26 | I65: 33.70 | J65: 70.20
A66: 62 | B66: 1152831206508 | C66: 袁源 | D66: 4022镇宁自治县革利乡乡村振兴服务中心 | E66: 01管理人员 | F66: 202.00 | G66: 40.40 | H66: 82.92 | I66: 33.17 | J66: 73.57
A67: 63 | B67: 1152831203904 | C67: 肖璐瑶 | D67: 4022镇宁自治县革利乡乡村振兴服务中心 | E67: 01管理人员 | F67: 195.50 | G67: 39.10 | H67: 86.08 | I67: 34.43 | J67: 73.53
A68: 64 | B68: 1152831207511 | C68: 阮发榕 | D68: 4022镇宁自治县革利乡乡村振兴服务中心 | E68: 01管理人员 | F68: 192.00 | G68: 38.40 | H68: 77.56 | I68: 31.02 | J68: 69.42
A69: 65 | B69: 1152831205724 | C69: 张显敏 | D69: 4022镇宁自治县革利乡乡村振兴服务中心 | E69: 01管理人员 | F69: 192.00 | G69: 38.40 | H69: 82.58 | I69: 33.03 | J69: 71.43
A70: 66 | B70: 1152831204723 | C70: 黄初阳 | D70: 4023镇宁自治县六马镇村镇建设管理站 | E70: 01专业技术人员 | F70: 212.50 | G70: =F70/3*0.6 -> 42.50 | H70: 83.98 | I70: =H70*0.4 -> 33.59 | J70: 76.09
A71: 67 | B71: 1152831201913 | C71: 白光波 | D71: 4023镇宁自治县六马镇村镇建设管理站 | E71: 01专业技术人员 | F71: 175.50 | G71: 35.10 | H71: 79.54 | I71: 31.82 | J71: =G71+I71 -> 66.92
A72: 68 | B72: 1152831201820 | C72: 覃登航 | D72: 4023镇宁自治县六马镇村镇建设管理站 | E72: 01专业技术人员 | F72: 168.00 | G72: 33.60 | H72: 72.18 | I72: 28.87 | J72: 62.47
A73: 69 | B73: 1152831207824 | C73: 黄智超 | D73: 4024镇宁自治县六马镇林业和环境保护工作站 | E73: 01专业技术人员 | F73: 182.50 | G73: 36.50 | H73: 80.26 | I73: 32.10 | J73: 68.60
A74: 70 | B74: 1152831202710 | C74: 肖芸 | D74: 4024镇宁自治县六马镇林业和环境保护工作站 | E74: 01专业技术人员 | F74: 171.50 | G74: 34.30 | H74: 84.86 | I74: 33.94 | J74: 68.24
A75: 71 | B75: 1152831200311 | C75: 龙行 | D75: 4024镇宁自治县六马镇林业和环境保护工作站 | E75: 01专业技术人员 | F75: 170.00 | G75: 34.00 | H75: 81.28 | I75: 32.51 | J75: 66.51
A76: 72 | B76: 1152831201328 | C76: 熊镇喻 | D76: 4025镇宁自治县良田镇财政分局 | E76: 01管理人员 | F76: 184.00 | G76: 36.80 | H76: 84.40 | I76: 33.76 | J76: 70.56
A77: 73 | B77: 1152831204726 | C77: 葛芋希 | D77: 4025镇宁自治县良田镇财政分局 | E77: 01管理人员 | F77: 176.00 | G77: 35.20 | H77: 79.98 | I77: 31.99 | J77: 67.19
A78: 74 | B78: 1152831203127 | C78: 黄纯欢 | D78: 4025镇宁自治县良田镇财政分局 | E78: 01管理人员 | F78: 170.50 | G78: 34.10 | H78: 缺考 | I78: 缺考
A79: 75 | B79: 1152831203529 | C79: 马艳 | D79: 4026镇宁自治县良田镇科技宣教文化信息服务中心 | E79: 01管理人员 | F79: 186.00 | G79: 37.20 | H79: 86.34 | I79: 34.54 | J79: 71.74
A80: 76 | B80: 1152831205405 | C80: 胡传羽 | D80: 4026镇宁自治县良田镇科技宣教文化信息服务中心 | E80: 01管理人员 | F80: 173.50 | G80: 34.70 | H80: 80.40 | I80: 32.16 | J80: 66.86
A81: 77 | B81: 1152831200322 | C81: 王健龙 | D81: 4026镇宁自治县良田镇科技宣教文化信息服务中心 | E81: 01管理人员 | F81: 164.00 | G81: 32.80 | H81: 80.92 | I81: 32.37 | J81: 65.17
A82: 78 | B82: 1152831200121 | C82: 黄书宇 | D82: 4027镇宁自治县简嘎乡农业服务中心 | E82: 01专业技术人员 | F82: 153.50 | G82: 30.70 | H82: 79.74 | I82: 31.90 | J82: 62.60
A83: 79 | B83: 1152831201916 | C83: 冯飞 | D83: 4027镇宁自治县简嘎乡农业服务中心 | E83: 01专业技术人员 | F83: 147.50 | G83: 29.50 | H83: 76.28 | I83: 30.51 | J83: 60.01
A84: 80 | B84: 1152831200812 | C84: 杨如英 | D84: 4027镇宁自治县简嘎乡农业服务中心 | E84: 01专业技术人员 | F84: 135.00 | G84: 27.00 | H84: 80.66 | I84: 32.26 | J84: 59.26
A85: 81 | B85: 1152831201125 | C85: 韦风 | D85: 4028镇宁自治县简嘎乡科技宣教文化信息服务中心 | E85: 01管理人员 | F85: 195.00 | G85: 39.00 | H85: 81.32 | I85: 32.53 | J85: 71.53
A86: 82 | B86: 1152831205811 | C86: 李佳佳 | D86: 4028镇宁自治县简嘎乡科技宣教文化信息服务中心 | E86: 01管理人员 | F86: 184.00 | G86: 36.80 | H86: 79.80 | I86: 31.92 | J86: 68.72
A87: 83 | B87: 1152831202817 | C87: 吴仕祥 | D87: 4028镇宁自治县简嘎乡科技宣教文化信息服务中心 | E87: 01管理人员 | F87: 183.00 | G87: 36.60 | H87: 80.56 | I87: 32.22 | J87: 68.82
A88: 84 | B88: 1152831202714 | C88: 黄家宸 | D88: 4029镇宁自治县简嘎乡林业和环境保护工作站 | E88: 01管理人员 | F88: 193.00 | G88: 38.60 | H88: 77.98 | I88: 31.19 | J88: 69.79
A89: 85 | B89: 1152831207415 | C89: 李霞 | D89: 4029镇宁自治县简嘎乡林业和环境保护工作站 | E89: 01管理人员 | F89: 186.00 | G89: 37.20 | H89: 81.60 | I89: 32.64 | J89: 69.84
A90: 86 | B90: 1152831207330 | C90: 郑希希 | D90: 4029镇宁自治县简嘎乡林业和环境保护工作站 | E90: 01管理人员 | F90: 184.50 | G90: 36.90 | H90: 78.92 | I90: 31.57 | J90: 68.47
A91: 87 | B91: 1152831204407 | C91: 刘翠萍 | D91: 4030镇宁自治县人大代表联络服务和基层立法联系中心 | E91: 01管理人员 | F91: 197.00 | G91: 39.40 | H91: 81.60 | I91: 32.64 | J91: 72.04
A92: 88 | B92: 1152831204310 | C92: 黄钰洁 | D92: 4030镇宁自治县人大代表联络服务和基层立法联系中心 | E92: 01管理人员 | F92: 172.50 | G92: 34.50 | H92: 77.70 | I92: 31.08 | J92: 65.58
A93: 89 | B93: 1152831206622 | C93: 邓兴焱 | D93: 4030镇宁自治县人大代表联络服务和基层立法联系中心 | E93: 01管理人员 | F93: 171.50 | G93: 34.30 | H93: 79.00 | I93: 31.60 | J93: 65.90
A94: 90 | B94: 1152831204503 | C94: 燕玉锡 | D94: 4030镇宁自治县人大代表联络服务和基层立法联系中心 | E94: 01管理人员 | F94: 171.50 | G94: 34.30 | H94: 75.82 | I94: 30.33 | J94: 64.63
A95: 91 | B95: 1152831208406 | C95: 夏兰兰 | D95: 4031镇宁自治县法学会 | E95: 01管理人员 | F95: 191.00 | G95: 38.20 | H95: 79.44 | I95: 31.78 | J95: 69.98
A96: 92 | B96: 1152831207822 | C96: 马跃 | D96: 4031镇宁自治县法学会 | E96: 01管理人员 | F96: 182.50 | G96: 36.50 | H96: 76.82 | I96: 30.73 | J96: 67.23
A97: 93 | B97: 1152831207306 | C97: 吴货 | D97: 4031镇宁自治县法学会 | E97: 01管理人员 | F97: 174.50 | G97: 34.90 | H97: 78.04 | I97: 31.22 | J97: 66.12
A98: 94 | B98: 1152831203725 | C98: 舒小方 | D98: 4031镇宁自治县法学会 | E98: 01管理人员 | F98: 174.50 | G98: 34.90 | H98: 缺考 | I98: 缺考
A99: 95 | B99: 1152831200816 | C99: 刘艳玲 | D99: 4032镇宁自治县档案馆 | E99: 01管理人员 | F99: 208.00 | G99: 41.60 | H99: 81.84 | I99: 32.74 | J99: 74.34
A100: 96 | B100: 1152831203819 | C100: 代方来 | D100: 4032镇宁自治县档案馆 | E100: 01管理人员 | F100: 194.50 | G100: 38.90 | H100: 80.04 | I100: 32.02 | J100: 70.92
A101: 97 | B101: 1152831204519 | C101: 王蔓清 | D101: 4032镇宁自治县档案馆 | E101: 01管理人员 | F101: 193.00 | G101: 38.60 | H101: 82.24 | I101: 32.90 | J101: 71.50
A102: 98 | B102: 1152831203112 | C102: 李超 | D102: 4033镇宁自治县融媒体中心 | E102: 01专业技术人员 | F102: 182.00 | G102: 36.40 | H102: 78.60 | I102: 31.44 | J102: 67.84
A103: 99 | B103: 1152831203102 | C103: 王蓉 | D103: 4033镇宁自治县融媒体中心 | E103: 01专业技术人员 | F103: 180.50 | G103: 36.10 | H103: 78.60 | I103: 31.44 | J103: 67.54
A104: 100 | B104: 1152831205216 | C104: 夏明 | D104: 4033镇宁自治县融媒体中心 | E104: 01专业技术人员 | F104: 178.50 | G104: 35.70 | H104: 75.76 | I104: 30.30 | J104: 66.00
A105: 101 | B105: 1152831208428 | C105: 向羿桔 | D105: 4033镇宁自治县融媒体中心 | E105: 02专业技术人员 | F105: 211.50 | G105: 42.30 | H105: 82.92 | I105: 33.17 | J105: 75.47
A106: 102 | B106: 1152831206626 | C106: 许斯伟 | D106: 4033镇宁自治县融媒体中心 | E106: 02专业技术人员 | F106: 199.00 | G106: 39.80 | H106: 79.26 | I106: 31.70 | J106: 71.50
A107: 103 | B107: 1152831206618 | C107: 张永芬 | D107: 4033镇宁自治县融媒体中心 | E107: 02专业技术人员 | F107: 190.00 | G107: 38.00 | H107: 缺考 | I107: 缺考
A108: 104 | B108: 1152831200914 | C108: 卢小缅 | D108: 4033镇宁自治县融媒体中心 | E108: 02专业技术人员 | F108: 190.00 | G108: 38.00 | H108: 75.60 | I108: 30.24 | J108: 68.24
A109: 105 | B109: 1152831203920 | C109: 罗正宇 | D109: 4034镇宁自治县森林病虫检疫防治站 | E109: 01管理人员 | F109: 174.50 | G109: 34.90 | H109: 77.82 | I109: 31.13 | J109: 66.03
A110: 106 | B110: 1152831201901 | C110: 王梦兰 | D110: 4034镇宁自治县森林病虫检疫防治站 | E110: 01管理人员 | F110: 150.50 | G110: 30.10 | H110: 77.48 | I110: 30.99 | J110: 61.09
A111: 107 | B111: 1152831202403 | C111: 江廷进 | D111: 4034镇宁自治县森林病虫检疫防治站 | E111: 01管理人员 | F111: 136.00 | G111: 27.20 | H111: 77.56 | I111: 31.02 | J111: 58.22
A112: 108 | B112: 1152831205909 | C112: 马松 | D112: 4035镇宁自治县国有白马林场 | E112: 01专业技术人员 | F112: 167.50 | G112: 33.50 | H112: 80.52 | I112: 32.21 | J112: 65.71
A113: 109 | B113: 1152831200529 | C113: 舒涵 | D113: 4035镇宁自治县国有白马林场 | E113: 01专业技术人员 | F113: 165.00 | G113: 33.00 | H113: 81.84 | I113: 32.74 | J113: 65.74
A114: 110 | B114: 1152831203925 | C114: 李正国 | D114: 4036镇宁自治县交通运输综合行政执法大队 | E114: 01管理人员 | F114: 195.50 | G114: 39.10 | H114: 88.90 | I114: 35.56 | J114: 74.66
A115: 111 | B115: 1152831206218 | C115: 杨雷 | D115: 4036镇宁自治县交通运输综合行政执法大队 | E115: 01管理人员 | F115: 186.50 | G115: 37.30 | H115: 82.78 | I115: 33.11 | J115: 70.41
A116: 112 | B116: 1152831206708 | C116: 卢天艳 | D116: 4036镇宁自治县交通运输综合行政执法大队 | E116: 01管理人员 | F116: 180.00 | G116: 36.00 | H116: 85.22 | I116: 34.09 | J116: 70.09
A117: 113 | B117: 1152831202122 | C117: 王挺 | D117: 4036镇宁自治县交通运输综合行政执法大队 | E117: 02管理人员 | F117: 165.00 | G117: 33.00 | H117: 81.74 | I117: 32.70 | J117: 65.70
A118: 114 | B118: 1152831203001 | C118: 张松 | D118: 4037镇宁自治县市场监督管理局信息中心 | E118: 01管理人员 | F118: 214.00 | G118: 42.80 | H118: 86.40 | I118: 34.56 | J118: 77.36
A119: 115 | B119: 1152831204109 | C119: 林婧 | D119: 4037镇宁自治县市场监督管理局信息中心 | E119: 01管理人员 | F119: 212.00 | G119: 42.40 | H119: 85.00 | I119: 34.00 | J119: 76.40
A120: 116 | B120: 1152831201917 | C120: 李长保 | D120: 4037镇宁自治县市场监督管理局信息中心 | E120: 01管理人员 | F120: 202.00 | G120: 40.40 | H120: 81.88 | I120: 32.75 | J120: 73.15
A121: 117 | B121: 1152831207523 | C121: 罗再贝 | D121: 4038镇宁自治县白马湖水库管理所 | E121: 01专业技术人员 | F121: 204.50 | G121: 40.90 | H121: 80.00 | I121: 32.00 | J121: 72.90
A122: 118 | B122: 1152831207311 | C122: 李贵明 | D122: 4038镇宁自治县白马湖水库管理所 | E122: 01专业技术人员 | F122: 190.00 | G122: 38.00 | H122: 76.62 | I122: 30.65 | J122: 68.65
A123: 119 | B123: 1152831202802 | C123: 宋键冬 | D123: 4038镇宁自治县白马湖水库管理所 | E123: 01专业技术人员 | F123: 190.00 | G123: 38.00 | H123: 79.08 | I123: 31.63 | J123: 69.63
A124: 120 | B124: 1152831208430 | C124: 欧阳鑫星 | D124: 4039镇宁自治县旅游发展中心 | E124: 01管理人员 | F124: 201.00 | G124: 40.20 | H124: 86.00 | I124: 34.40 | J124: 74.60
A125: 121 | B125: 1152831201620 | C125: 陈茜茜 | D125: 4039镇宁自治县旅游发展中心 | E125: 01管理人员 | F125: 190.00 | G125: 38.00 | H125: 82.90 | I125: 33.16 | J125: 71.16
A126: 122 | B126: 1152831201717 | C126: 周可欣 | D126: 4039镇宁自治县旅游发展中心 | E126: 01管理人员 | F126: 184.00 | G126: 36.80 | H126: 81.76 | I126: 32.70 | J126: 69.50
A127: 123 | B127: 1152831203125 | C127: 朱丽 | D127: 4040镇宁自治县文物管理所 | E127: 01专业技术人员 | F127: 209.50 | G127: 41.90 | H127: 86.56 | I127: 34.62 | J127: 76.52
A128: 124 | B128: 1152831205916 | C128: 郭志相 | D128: 4040镇宁自治县文物管理所 | E128: 01专业技术人员 | F128: 200.00 | G128: 40.00 | H128: 85.64 | I128: 34.26 | J128: 74.26
A129: 125 | B129: 1152831204803 | C129: 郭菊 | D129: 4040镇宁自治县文物管理所 | E129: 01专业技术人员 | F129: 195.00 | G129: 39.00 | H129: 86.70 | I129: 34.68 | J129: 73.68
A130: 126 | B130: 5152831210502 | C130: 伍娇 | D130: 4051镇宁自治县中医院 | E130: 02专业技术人员 | F130: 151.90 | G130: 30.38 | H130: 76.72 | I130: 30.69 | J130: 61.07
A131: 127 | B131: 1152831208023 | C131: 朱鹏程 | D131: 4052镇宁自治县募役镇卫生院 | E131: 01管理人员 | F131: 207.00 | G131: 41.40 | H131: 88.80 | I131: 35.52 | J131: 76.92
A132: 128 | B132: 1152831201710 | C132: 冶威泽 | D132: 4052镇宁自治县募役镇卫生院 | E132: 01管理人员 | F132: 197.50 | G132: 39.50 | H132: 83.98 | I132: 33.59 | J132: 73.09
A133: 129 | B133: 1152831201821 | C133: 吕声正 | D133: 4052镇宁自治县募役镇卫生院 | E133: 01管理人员 | F133: 186.50 | G133: 37.30 | H133: 69.90 | I133: 27.96 | J133: 65.26
A134: 130 | B134: 5652831210620 | C134: 周姚芳 | D134: 4053镇宁自治县马厂镇中心卫生院 | E134: 01管理人员 | F134: 197.10 | G134: =F134/3*0.6 -> 39.42 | H134: 80.88 | I134: =H134*0.4 -> 32.35 | J134: 71.77
A135: 131 | B135: 5652831210612 | C135: 刘家福 | D135: 4053镇宁自治县马厂镇中心卫生院 | E135: 01管理人员 | F135: 182.10 | G135: 36.42 | H135: 82.18 | I135: 32.87 | J135: =G135+I135 -> 69.29
A136: 132 | B136: 5652831210601 | C136: 李秧 | D136: 4053镇宁自治县马厂镇中心卫生院 | E136: 01管理人员 | F136: 162.40 | G136: 32.48 | H136: 76.60 | I136: 30.64 | J136: 63.12
A137: 133 | B137: 5652831210619 | C137: 李优龙 | D137: 4054镇宁自治县扁担山镇卫生院 | E137: 01管理人员 | F137: 165.80 | G137: 33.16 | H137: 76.90 | I137: 30.76 | J137: 63.92
A138: 134 | B138: 5652831210625 | C138: 黄莎莎 | D138: 4054镇宁自治县扁担山镇卫生院 | E138: 01管理人员 | F138: 162.90 | G138: 32.58 | H138: 82.24 | I138: 32.90 | J138: 65.48
A139: 135 | B139: 5652831210607 | C139: 潘丽 | D139: 4054镇宁自治县扁担山镇卫生院 | E139: 01管理人员 | F139: 162.40 | G139: 32.48 | H139: 81.30 | I139: 32.52 | J139: 65.00
A140: 136 | B140: 4252831209915 | C140: 杜立茸 | D140: 4041镇宁自治县思源实验学校 | E140: 01专业技术人员 | F140: 193.50 | G140: 38.70 | H140: 73.94 | I140: 29.58 | J140: 68.28
A141: 137 | B141: 4252831209911 | C141: 温雨雪 | D141: 4041镇宁自治县思源实验学校 | E141: 01专业技术人员 | F141: 189.50 | G141: 37.90 | H141: 86.16 | I141: 34.46 | J141: 72.36
A142: 138 | B142: 4252831209902 | C142: 刘青春 | D142: 4041镇宁自治县思源实验学校 | E142: 01专业技术人员 | F142: 189.00 | G142: 37.80 | H142: 72.77 | I142: 29.11 | J142: 66.91
A143: 139 | B143: 4252831210403 | C143: 马双勇 | D143: 4041镇宁自治县思源实验学校 | E143: 02专业技术人员 | F143: 179.50 | G143: 35.90 | H143: 85.07 | I143: 34.03 | J143: 69.93
A144: 140 | B144: 4252831210126 | C144: 刘芮彤 | D144: 4041镇宁自治县思源实验学校 | E144: 02专业技术人员 | F144: 178.50 | G144: 35.70 | H144: 79.50 | I144: 31.80 | J144: 67.50
A145: 141 | B145: 4252831210109 | C145: 鲍雪 | D145: 4041镇宁自治县思源实验学校 | E145: 02专业技术人员 | F145: 165.00 | G145: 33.00 | H145: 87.79 | I145: 35.12 | J145: 68.12
A146: 142 | B146: 4252831210124 | C146: 杨珍敏 | D146: 4042镇宁自治县江龙中学 | E146: 01专业技术人员 | F146: 192.50 | G146: 38.50 | H146: 78.61 | I146: 31.44 | J146: 69.94
A147: 143 | B147: 4252831210129 | C147: 骆方青 | D147: 4042镇宁自治县江龙中学 | E147: 01专业技术人员 | F147: 189.50 | G147: 37.90 | H147: 76.67 | I147: 30.67 | J147: 68.57
A148: 144 | B148: 4252831209714 | C148: 关骞 | D148: 4042镇宁自治县江龙中学 | E148: 01专业技术人员 | F148: 189.00 | G148: 37.80 | H148: 77.33 | I148: 30.93 | J148: 68.73
A149: 145 | B149: 4252831209806 | C149: 刘灿慧 | D149: 4043镇宁自治县第三中学 | E149: 01专业技术人员 | F149: 199.00 | G149: 39.80 | H149: 80.41 | I149: 32.16 | J149: 71.96
A150: 146 | B150: 4252831210001 | C150: 杨柳青 | D150: 4043镇宁自治县第三中学 | E150: 01专业技术人员 | F150: 186.00 | G150: 37.20 | H150: 缺考 | I150: 缺考
A151: 147 | B151: 4252831209821 | C151: 杨缘 | D151: 4043镇宁自治县第三中学 | E151: 01专业技术人员 | F151: 183.50 | G151: 36.70 | H151: 75.73 | I151: =H151*0.4 -> 30.29 | J151: =G151+I151 -> 66.99
A152: 148 | B152: 4252831209715 | C152: 张民甜 | D152: 4043镇宁自治县第三中学 | E152: 01专业技术人员 | F152: 183.50 | G152: 36.70 | H152: 82.41 | I152: =H152*0.4 -> 32.96 | J152: =G152+I152 -> 69.66
A153: 149 | B153: 4252831209713 | C153: 丁迪 | D153: 4043镇宁自治县第三中学 | E153: 02专业技术人员 | F153: 203.50 | G153: 40.70 | H153: 79.36 | I153: =H153*0.4 -> 31.74 | J153: =G153+I153 -> 72.44
A154: 150 | B154: 4252831209908 | C154: 朱腾芬 | D154: 4043镇宁自治县第三中学 | E154: 02专业技术人员 | F154: 202.50 | G154: 40.50 | H154: 缺考 | I154: 缺考
A155: 151 | B155: 4252831210002 | C155: 袁娅 | D155: 4043镇宁自治县第三中学 | E155: 02专业技术人员 | F155: 197.50 | G155: 39.50 | H155: 77.30 | I155: 30.92 | J155: =G155+I155 -> 70.42
A156: 152 | B156: 4152831208616 | C156: 王蝶 | D156: 4044镇宁自治县实验小学 | E156: 01专业技术人员 | F156: 180.50 | G156: 36.10 | H156: 73.77 | I156: 29.51 | J156: =G156+I156 -> 65.61
A157: 153 | B157: 4152831208923 | C157: 卢青 | D157: 4044镇宁自治县实验小学 | E157: 01专业技术人员 | F157: 172.00 | G157: 34.40 | H157: 76.87 | I157: 30.75 | J157: 65.15
A158: 154 | B158: 4152831210313 | C158: 骆远雪 | D158: 4044镇宁自治县实验小学 | E158: 01专业技术人员 | F158: 168.00 | G158: 33.60 | H158: 75.10 | I158: 30.04 | J158: 63.64
A159: 155 | B159: 4152831209616 | C159: 罗小茜 | D159: 4044镇宁自治县实验小学 | E159: 01专业技术人员 | F159: 167.00 | G159: 33.40 | H159: 70.82 | I159: 28.33 | J159: 61.73
A160: 156 | B160: 4152831209515 | C160: 钟冬雪 | D160: 4044镇宁自治县实验小学 | E160: 01专业技术人员 | F160: 163.50 | G160: 32.70 | H160: 87.58 | I160: 35.03 | J160: 67.73
A161: 157 | B161: 4152831208717 | C161: 彭凤宣 | D161: 4044镇宁自治县实验小学 | E161: 01专业技术人员 | F161: 163.00 | G161: 32.60 | H161: 71.78 | I161: 28.71 | J161: 61.31
A162: 158 | B162: 4152831209310 | C162: 张远秀 | D162: 4044镇宁自治县实验小学 | E162: 02专业技术人员 | F162: 164.50 | G162: 32.90 | H162: 86.25 | I162: 34.50 | J162: 67.40
A163: 159 | B163: 4152831209508 | C163: 钟鑫苑 | D163: 4044镇宁自治县实验小学 | E163: 02专业技术人员 | F163: 156.50 | G163: 31.30 | H163: 90.86 | I163: 36.34 | J163: 67.64
A164: 160 | B164: 4152831209422 | C164: 秦瑶 | D164: 4044镇宁自治县实验小学 | E164: 03专业技术人员 | F164: 191.00 | G164: 38.20 | H164: 81.80 | I164: 32.72 | J164: 70.92
A165: 161 | B165: 4152831209413 | C165: 柴雪雪 | D165: 4044镇宁自治县实验小学 | E165: 03专业技术人员 | F165: 183.50 | G165: 36.70 | H165: 79.92 | I165: 31.97 | J165: 68.67
A166: 162 | B166: 4152831209528 | C166: 安幸 | D166: 4044镇宁自治县实验小学 | E166: 03专业技术人员 | F166: 175.50 | G166: 35.10 | H166: 82.95 | I166: 33.18 | J166: 68.28
A167: 163 | B167: 4152831209215 | C167: 金燕 | D167: 4045镇宁自治县第二小学 | E167: 01专业技术人员 | F167: 162.00 | G167: 32.40 | H167: 85.64 | I167: 34.26 | J167: 66.66
A168: 164 | B168: 4152831209420 | C168: 邓花 | D168: 4045镇宁自治县第二小学 | E168: 01专业技术人员 | F168: 161.00 | G168: 32.20 | H168: 76.29 | I168: 30.52 | J168: 62.72
A169: 165 | B169: 4152831209204 | C169: 王咪呵 | D169: 4045镇宁自治县第二小学 | E169: 01专业技术人员 | F169: 154.50 | G169: 30.90 | H169: 75.45 | I169: 30.18 | J169: 61.08
A170: 166 | B170: 4152831208719 | C170: 董佳欣 | D170: 4045镇宁自治县第二小学 | E170: 02专业技术人员 | F170: 168.50 | G170: 33.70 | H170: 86.54 | I170: 34.62 | J170: 68.32
A171: 167 | B171: 4152831208809 | C171: 杨升高 | D171: 4045镇宁自治县第二小学 | E171: 02专业技术人员 | F171: 165.50 | G171: 33.10 | H171: 80.93 | I171: 32.37 | J171: 65.47
A172: 168 | B172: 4152831208802 | C172: 魏菲丽 | D172: 4045镇宁自治县第二小学 | E172: 02专业技术人员 | F172: 160.00 | G172: 32.00 | H172: 77.73 | I172: 31.09 | J172: 63.09
A173: 169 | B173: 4152831208826 | C173: 王克艳 | D173: 4045镇宁自治县第二小学 | E173: 02专业技术人员 | F173: 158.50 | G173: 31.70 | H173: 76.18 | I173: 30.47 | J173: 62.17
A174: 170 | B174: 4152831209128 | C174: 李永艳 | D174: 4045镇宁自治县第二小学 | E174: 02专业技术人员 | F174: 157.50 | G174: 31.50 | H174: 缺考 | I174: 缺考
A175: 171 | B175: 4152831209414 | C175: 李美 | D175: 4045镇宁自治县第二小学 | E175: 02专业技术人员 | F175: 154.50 | G175: 30.90 | H175: 缺考 | I175: 缺考
A176: 172 | B176: 4152831209121 | C176: 严忠鹏 | D176: 4045镇宁自治县第二小学 | E176: 03专业技术人员 | F176: 183.50 | G176: 36.70 | H176: 缺考 | I176: 缺考
A177: 173 | B177: 4152831209613 | C177: 袁文东 | D177: 4045镇宁自治县第二小学 | E177: 03专业技术人员 | F177: 175.50 | G177: 35.10 | H177: 84.54 | I177: 33.82 | J177: 68.92
A178: 174 | B178: 4152831208619 | C178: 周云 | D178: 4045镇宁自治县第二小学 | E178: 03专业技术人员 | F178: 171.00 | G178: 34.20 | H178: 缺考 | I178: 缺考
A179: 175 | B179: 4152831209601 | C179: 刘念 | D179: 4046镇宁自治县第三小学 | E179: 01专业技术人员 | F179: 195.50 | G179: 39.10 | H179: 75.59 | I179: 30.24 | J179: 69.34
A180: 176 | B180: 4152831209608 | C180: 石龙英 | D180: 4046镇宁自治县第三小学 | E180: 01专业技术人员 | F180: 180.00 | G180: 36.00 | H180: 78.56 | I180: 31.42 | J180: 67.42
A181: 177 | B181: 4152831209321 | C181: 林颖 | D181: 4046镇宁自治县第三小学 | E181: 01专业技术人员 | F181: 170.00 | G181: 34.00 | H181: 77.08 | I181: 30.83 | J181: 64.83
A182: 178 | B182: 4152831209013 | C182: 陈雪 | D182: 4046镇宁自治县第三小学 | E182: 02专业技术人员 | F182: 174.00 | G182: 34.80 | H182: 82.50 | I182: 33.00 | J182: 67.80
A183: 179 | B183: 4152831209023 | C183: 阮兴萍 | D183: 4046镇宁自治县第三小学 | E183: 03专业技术人员 | F183: 187.50 | G183: 37.50 | H183: 86.36 | I183: 34.54 | J183: 72.04
A184: 180 | B184: 4152831208617 | C184: 何露旭 | D184: 4046镇宁自治县第三小学 | E184: 03专业技术人员 | F184: 166.00 | G184: 33.20 | H184: 82.12 | I184: 32.85 | J184: 66.05
A185: 181 | B185: 4152831208805 | C185: 吴雅菲 | D185: 4046镇宁自治县第三小学 | E185: 03专业技术人员 | F185: 158.50 | G185: 31.70 | H185: 82.96 | I185: 33.18 | J185: 64.88
A186: 182 | B186: 4152831209509 | C186: 余方丽 | D186: 4046镇宁自治县第三小学 | E186: 04专业技术人员 | F186: 183.50 | G186: 36.70 | H186: 83.60 | I186: 33.44 | J186: 70.14
A187: 183 | B187: 4152831209329 | C187: 李雪蕾 | D187: 4046镇宁自治县第三小学 | E187: 04专业技术人员 | F187: 179.50 | G187: 35.90 | H187: 83.04 | I187: 33.22 | J187: 69.12
A188: 184 | B188: 4152831208603 | C188: 王映欢 | D188: 4046镇宁自治县第三小学 | E188: 04专业技术人员 | F188: 178.00 | G188: 35.60 | H188: 81.46 | I188: 32.58 | J188: 68.18
A189: 185 | B189: 4152831209619 | C189: 陈胜健 | D189: 4046镇宁自治县第三小学 | E189: 05专业技术人员 | F189: 186.50 | G189: 37.30 | H189: 86.08 | I189: 34.43 | J189: 71.73
A190: 186 | B190: 4152831209606 | C190: 田洪宇 | D190: 4046镇宁自治县第三小学 | E190: 05专业技术人员 | F190: 173.50 | G190: 34.70 | H190: 85.40 | I190: 34.16 | J190: 68.86
A191: 187 | B191: 4152831209407 | C191: 韦云方 | D191: 4046镇宁自治县第三小学 | E191: 05专业技术人员 | F191: 169.00 | G191: 33.80 | H191: 82.94 | I191: 33.18 | J191: 66.98
A192: 188 | B192: 4152831209015 | C192: 罗小彩 | D192: 4047镇宁自治县第一小学 | E192: 01专业技术人员 | F192: 195.00 | G192: 39.00 | H192: 78.18 | I192: 31.27 | J192: 70.27
A193: 189 | B193: 4152831209524 | C193: 陈梦蝶 | D193: 4047镇宁自治县第一小学 | E193: 01专业技术人员 | F193: 190.00 | G193: 38.00 | H193: 81.92 | I193: 32.77 | J193: 70.77
A194: 190 | B194: 4152831209423 | C194: 邢玉娇 | D194: 4047镇宁自治县第一小学 | E194: 01专业技术人员 | F194: 189.50 | G194: 37.90 | H194: 78.93 | I194: 31.57 | J194: 69.47
A195: 191 | B195: 4152831208626 | C195: 罗喜欢 | D195: 4047镇宁自治县第一小学 | E195: 03专业技术人员 | F195: 171.50 | G195: 34.30 | H195: 83.12 | I195: 33.25 | J195: 67.55
A196: 192 | B196: 4152831209401 | C196: 万芳 | D196: 4047镇宁自治县第一小学 | E196: 03专业技术人员 | F196: 169.00 | G196: 33.80 | H196: 86.62 | I196: 34.65 | J196: 68.45
A197: 193 | B197: 4152831209214 | C197: 黄赛 | D197: 4047镇宁自治县第一小学 | E197: 03专业技术人员 | F197: 167.50 | G197: 33.50 | H197: 87.56 | I197: 35.02 | J197: 68.52
A198: 194 | B198: 4152831208928 | C198: 付勇 | D198: 4047镇宁自治县第一小学 | E198: 04专业技术人员 | F198: 163.50 | G198: =F198/3*0.6 -> 32.70 | H198: 88.04 | I198: =H198*0.4 -> 35.22 | J198: 67.92
A199: 195 | B199: 4152831209205 | C199: 赵才江 | D199: 4047镇宁自治县第一小学 | E199: 04专业技术人员 | F199: 162.00 | G199: 32.40 | H199: 84.40 | I199: 33.76 | J199: 66.16
A200: 196 | B200: 4152831209002 | C200: 罗春敏 | D200: 4047镇宁自治县第一小学 | E200: 04专业技术人员 | F200: 158.50 | G200: 31.70 | H200: 80.28 | I200: 32.11 | J200: 63.81
... 18 more rows
